fUST/lending_fUST_20250725
["ID","MTS","AMOUNT","RATE_DAILY","PERIOD"]
[374678464,1753409697527,30000.0,0.00017403,2]
[374678465,1753409725949,857.22902327,0.00016881,2]
[374678466,1753409726393,283.884835,0.00016976,2]
[374678468,1753409769996,228.785979,0.00013699,2]
[374678469,1753409787791,10000.0,0.00016476,2]
[374678470,1753409797725,165.50836,0.00016452,2]
[374678471,1753409797926,165.50836,0.00016506,2]
[374678472,1753409798148,165.50836,0.00016561,2]
[374678473,1753409798372,165.50836,0.00016616,2]
[374678474,1753409799694,180.043233,0.00016583,2]
[374678475,1753409799845,180.043233,0.00016583,120]
[374678476,1753409888284,5000.0,0.00017,2]
[374678477,1753409907087,984.0,0.00017,2]
[374678478,1753409927241,912.7388,0.00016401,2]
[374678481,1753409983805,891.28468973,0.00016401,2]
[374678482,1753409983831,24008.71531027,0.00016401,2]
[374678484,1753410028549,400.78347996,0.00016709,2]
[374678485,1753410095389,5000.0,0.00017,2]
[374678486,1753410155841,590.50120977,0.000164,2]
[374678487,1753410155866,2701.98221113,0.000164,2]
[374678488,1753410203914,1101.0,0.00026,120]
[374678490,1753410306361,5000.0,0.000176,6]
[374678494,1753410324703,5000.0,0.000176,6]
[374678495,1753410329807,240.47008798,0.00016878,2]
[374678497,1753410341114,5000.0,0.00017,2]
[374678498,1753410356708,5000.0,0.00017,2]
[374678499,1753410364884,315.7812952,0.000164,2]
[374678500,1753410373517,5000.0,0.00017,2]
[374678502,1753410388795,5000.0,0.00017,2]
[374678503,1753410404971,5000.0,0.00017,2]
[374678504,1753410420766,1741.76640569,0.00017,2]
[374678505,1753410420791,3258.23359431,0.00017,2]
[374678506,1753410436194,5000.0,0.00017,2]
[374678507,1753410451563,5000.0,0.00017,2]
[374678509,1753410467411,5000.0,0.00017,2]
[374678510,1753410483722,5000.0,0.00017,2]
[374678511,1753410499787,5000.0,0.00017,2]
[374678512,1753410513900,1741.76640569,0.00017,2]
[374678513,1753410513925,30000.0,0.00017,2]
[374678514,1753410513949,25879.53920864,0.00017,2]
[374678515,1753410515175,4120.46079136,0.00017,2]
[374678516,1753410515200,879.53920864,0.00017,2]
[374678519,1753410530880,5000.0,0.00017,2]
[374678520,1753410546175,5000.0,0.00017,2]
[374678521,1753410555130,-1200.0,0.00017299,2]
[374678522,1753410555152,-300.0,0.00017299,2]
[374678523,1753410555172,-19667.64960311,0.000173,2]
[374678524,1753410555193,-232.46964454,0.00017301,2]
[374678525,1753410555215,-500.0,0.00017372,2]
[374678526,1753410555236,-500.0,0.00017372,2]
[374678527,1753410555258,-500.0,0.00017372,2]
[374678528,1753410555280,-434.29871246,0.00017372,2]
[374678529,1753410555312,-500.0,0.00017372,2]
[374678530,1753410555333,-500.0,0.00017372,2]
[374678531,1753410555354,-500.0,0.00017372,2]
[374678532,1753410555375,-500.88851294,0.00017372,2]
[374678533,1753410555579,-500.0,0.00017372,2]
[374678534,1753410555601,-500.0,0.00017372,2]
[374678535,1753410555622,-500.0,0.00017372,2]
[374678536,1753410555642,-570.29561101,0.00017372,2]
[374678537,1753410555665,-500.0,0.00017372,2]
[374678538,1753410555685,-191.22881466,0.00017372,2]
[374678539,1753410555707,-500.0,0.00017372,2]
[374678540,1753410555733,-500.0,0.00017372,2]
[374678541,1753410555754,-500.0,0.00017372,2]
[374678542,1753410555775,-500.0,0.00017372,2]
[374678543,1753410555797,-500.0,0.00017372,2]
[374678544,1753410555818,-500.0,0.00017372,2]
[374678545,1753410555842,-500.0,0.00017372,2]
[374678546,1753410555864,-500.0,0.00017372,2]
[374678547,1753410555888,-500.0,0.00017372,2]
[374678548,1753410555909,-495.39541977,0.00017372,2]
[374678549,1753410555930,-500.0,0.00017372,2]
[374678550,1753410555951,-500.0,0.00017372,2]
[374678551,1753410555977,-500.0,0.00017372,2]
[374678552,1753410555999,-344.42295965,0.00017372,2]
[374678553,1753410556022,-500.0,0.00017372,2]
[374678554,1753410556044,-500.0,0.00017372,2]
[374678555,1753410556067,-500.0,0.00017372,2]
[374678556,1753410556088,-560.25132276,0.00017372,2]
[374678557,1753410556111,-500.0,0.00017372,2]
[374678558,1753410556132,-500.0,0.00017372,2]
[374678559,1753410556154,-500.0,0.00017372,2]
[374678560,1753410556175,-164.86317916,0.00017372,2]
[374678561,1753410556197,-500.0,0.00017372,2]
[374678562,1753410556221,-500.0,0.00017372,2]
[374678563,1753410556243,-500.0,0.00017372,2]
[374678564,1753410556266,-500.0,0.00017372,2]
[374678565,1753410556287,-500.0,0.00017372,2]
[374678566,1753410556309,-474.77449242,0.00017372,2]
[374678567,1753410556332,-500.0,0.00017372,2]
[374678568,1753410556353,-500.0,0.00017372,2]
[374678569,1753410556374,-636.8686426,0.00017372,2]
[374678570,1753410556396,-500.0,0.00017372,2]
[374678571,1753410556417,-500.0,0.00017372,2]
[374678572,1753410556439,-500.0,0.00017372,2]
[374678573,1753410556460,-500.0,0.00017372,2]
[374678574,1753410556489,-500.0,0.00017372,2]
[374678575,1753410556512,-500.0,0.00017372,2]
[374678576,1753410556533,-500.0,0.00017372,2]
[374678577,1753410556557,-500.0,0.00017372,2]
[374678578,1753410556580,-500.0,0.00017372,2]
[374678579,1753410556601,-419.23505794,0.00017372,2]
[374678580,1753410556622,-422.98950136,0.00017372,2]
[374678581,1753410556644,-186.52885937,0.00017372,2]
[374678582,1753410556665,-385.83240662,0.00017372,2]
[374678583,1753410556685,-286.4300512,0.00017373,2]
[374678584,1753410556705,-41612.68361036,0.00017392,2]
[374678588,1753410557353,-2732.64701905,0.00017392,2]
[374678614,1753410632348,-5000.0,0.00017218,2]
[374678615,1753410632358,-137.75756676,0.00017218,2]
[374678769,1753410635570,5000.0,0.00017,2]
[374678775,1753410638122,-22.24243324,0.00017218,2]
[374678776,1753410638133,-300.0,0.00017391,2]
[374678777,1753410638142,-300.0,0.00017391,2]
[374678778,1753410638152,-300.0,0.00017391,2]
[374678779,1753410638162,-300.0,0.00017391,2]
[374678780,1753410638173,-1200.0,0.00017391,2]
[374678781,1753410638184,-233.43185065,0.00017392,2]
[374678782,1753410638194,-460.0,0.00017392,2]
[374678783,1753410638204,-460.0,0.00017392,2]
[374678784,1753410638214,-460.0,0.00017392,2]
[374678785,1753410638224,-5654.66937059,0.00017392,2]
[374678786,1753410638234,-771.71,0.00017393,3]
[374678787,1753410638244,-160.42448977,0.000174,2]
[374678788,1753410638254,-185.14377034,0.00017401,2]
[374678789,1753410638264,-5636.35363129,0.00017401,2]
[374678790,1753410638274,-1005.27127022,0.00017402,2]
[374678791,1753410638290,-460.0,0.00017402,2]
[374678792,1753410638300,-215.04589078,0.00017402,2]
[374678793,1753410638310,-559.7,0.00017402,2]
[374678794,1753410638320,-460.0,0.00017402,2]
[374678795,1753410638330,-494.51,0.00017402,2]
[374678796,1753410638340,-460.0,0.00017402,2]
[374678797,1753410638350,-460.0,0.00017402,2]
[374678798,1753410638360,-469.52,0.00017402,2]
[374678799,1753410638370,-515.84,0.00017402,2]
[374678800,1753410638379,-554.32,0.00017402,2]
[374678801,1753410638389,-460.0,0.00017402,2]
[374678802,1753410638399,-460.0,0.00017402,2]
[374678803,1753410638409,-2480.89,0.00017402,2]
[374678804,1753410638420,-248705.97187957,0.00017403,2]
[374678805,1753410638430,-500.0,0.00017473,2]
[374678806,1753410638439,-460.0,0.00017501,2]
[374678807,1753410638450,-462.37080429,0.00017501,2]
[374678808,1753410638460,-460.0,0.00017501,2]
[374678809,1753410638470,-460.0,0.00017501,2]
[374678810,1753410638480,-460.0,0.00017501,2]
[374678811,1753410638492,-460.0,0.00017501,2]
[374678812,1753410638505,-523.60763141,0.00017501,2]
[374678813,1753410638515,-460.0,0.00017501,2]
[374678814,1753410638524,-460.0,0.00017501,2]
[374678815,1753410638538,-460.0,0.00017501,2]
[374678816,1753410638547,-460.78907299,0.00017501,2]
[374678817,1753410638557,-460.0,0.00017501,2]
[374678818,1753410638567,-460.0,0.00017501,2]
[374678819,1753410638579,-460.0,0.00017501,2]
[374678820,1753410638589,-460.0,0.00017501,2]
[374678821,1753410638598,-531.83,0.00017501,2]
[374678822,1753410638608,-460.0,0.00017501,2]
[374678823,1753410638617,-340.31816724,0.00017501,2]
[374678824,1753410638626,-1000.0,0.00017501,2]
[374678825,1753410638636,-460.0,0.00017501,2]
[374678826,1753410638647,-460.0,0.00017501,2]
[374678827,1753410638657,-318.76817784,0.00017501,2]
[374678828,1753410638666,-462.60257295,0.00017501,2]
[374678829,1753410638675,-379.88597697,0.00017501,2]
[374678830,1753410638685,-460.0,0.00017501,2]
[374678831,1753410638695,-460.0,0.00017501,2]
[374678832,1753410638704,-460.0,0.00017501,2]
[374678833,1753410638714,-460.0,0.00017501,2]
[374678834,1753410638723,-460.0,0.00017501,2]
[374678835,1753410638733,-460.0,0.00017501,2]
[374678836,1753410638742,-460.0,0.00017501,2]
[374678837,1753410638752,-461.39108024,0.00017501,2]
[374678838,1753410638761,-462.0203705,0.00017501,2]
[374678839,1753410638771,-461.33768676,0.00017501,2]
[374678840,1753410638784,-460.0,0.00017501,2]
[374678841,1753410638794,-460.0,0.00017501,2]
[374678842,1753410638803,-460.0,0.00017501,2]
[374678843,1753410638813,-461.45066792,0.00017501,2]
[374678844,1753410638822,-461.28163295,0.00017501,2]
[374678845,1753410638832,-466.7084167,0.00017501,2]
[374678846,1753410638842,-460.0,0.00017501,2]
[374678847,1753410638851,-463.1940188,0.00017501,2]
[374678848,1753410638861,-460.0,0.00017501,2]
[374678849,1753410638871,-464.90799777,0.00017501,2]
[374678850,1753410638881,-463.91867804,0.00017501,2]
[374678851,1753410638890,-461.67261205,0.00017501,2]
[374678852,1753410638901,-460.0,0.00017501,2]
[374678853,1753410638911,-460.0,0.00017501,2]
[374678854,1753410638920,-461.52934225,0.00017501,2]
[374678855,1753410638930,-464.79343675,0.00017501,2]
[374678856,1753410638940,-460.0,0.00017501,2]
[374678857,1753410638949,-460.0,0.00017501,2]
[374678858,1753410638959,-460.0,0.00017501,2]
[374678859,1753410638969,-460.0,0.00017501,2]
[374678860,1753410638978,-460.0,0.00017501,2]
[374678861,1753410638987,-460.0,0.00017501,2]
[374678862,1753410638997,-256.26806296,0.00017501,2]
[374678863,1753410639006,-460.0,0.00017501,2]
[374678864,1753410639016,-708.61,0.00017501,2]
[374678865,1753410639026,-460.0,0.00017501,2]
[374678866,1753410639036,-561.11573193,0.00017501,2]
[374678867,1753410639046,-464.12004885,0.00017501,2]
[374678868,1753410639056,-460.0,0.00017501,2]
[374678869,1753410639066,-461.35876148,0.00017501,2]
[374678870,1753410639075,-460.0,0.00017501,2]
[374678871,1753410639084,-460.0,0.00017501,2]
[374678872,1753410639094,-460.0,0.00017501,2]
[374678873,1753410639103,-460.0,0.00017501,2]
[374678874,1753410639114,-460.82688055,0.00017501,2]
[374678875,1753410639123,-460.0,0.00017501,2]
[374678876,1753410639133,-464.96346792,0.00017501,2]
[374678877,1753410639142,-707.69,0.00017501,2]
[374678878,1753410639151,-460.0,0.00017501,2]
[374678879,1753410639161,-461.28112056,0.00017501,2]
[374678880,1753410639170,-460.0,0.00017501,2]
[374678881,1753410639180,-460.0,0.00017501,2]
[374678882,1753410639190,-460.92977016,0.00017501,2]
[374678883,1753410639200,-461.28553081,0.00017501,2]
[374678884,1753410639209,-460.0,0.00017501,2]
[374678885,1753410639220,-460.0,0.00017501,2]
[374678886,1753410639229,-460.0,0.00017501,2]
[374678887,1753410639239,-460.0,0.00017501,2]
[374678888,1753410639249,-460.0,0.00017501,2]
[374678889,1753410639259,-460.0,0.00017501,2]
[374678890,1753410639268,-460.0,0.00017501,2]
[374678891,1753410639278,-466.05511461,0.00017501,2]
[374678892,1753410639288,-460.0,0.00017501,2]
[374678893,1753410639298,-460.0,0.00017501,2]
[374678894,1753410639307,-460.0,0.00017501,2]
[374678895,1753410639317,-460.0,0.00017501,2]
[374678896,1753410639327,-460.0,0.00017501,2]
[374678897,1753410639337,-460.0,0.00017501,2]
[374678898,1753410639347,-460.0,0.00017501,2]
[374678899,1753410639356,-460.0,0.00017501,2]
[374678900,1753410639365,-460.0,0.00017501,2]
[374678901,1753410639375,-460.0,0.00017501,2]
[374678902,1753410639385,-465.1061167,0.00017501,2]
[374678903,1753410639394,-460.0,0.00017501,2]
[374678904,1753410639404,-460.0,0.00017501,2]
[374678905,1753410639414,-495.41,0.00017501,2]
[374678906,1753410639424,-460.0,0.00017501,2]
[374678907,1753410639433,-461.65954056,0.00017501,2]
[374678908,1753410639443,-460.0,0.00017501,2]
[374678909,1753410639452,-460.0,0.00017501,2]
[374678910,1753410639463,-419.10374137,0.00017501,2]
[374678911,1753410639472,-460.0,0.00017501,2]
[374678912,1753410639483,-460.0,0.00017501,2]
[374678913,1753410639500,-461.98581099,0.00017501,2]
[374678914,1753410639510,-460.0,0.00017501,2]
[374678915,1753410639520,-460.0,0.00017501,2]
[374678916,1753410639530,-460.0,0.00017501,2]
[374678917,1753410639540,-462.48736629,0.00017501,2]
[374678918,1753410639550,-466.04290391,0.00017501,2]
[374678919,1753410639559,-1047.05,0.00017501,2]
[374678920,1753410639569,-584.60667684,0.00017501,2]
[374678921,1753410639579,-460.0,0.00017501,2]
[374678922,1753410639589,-461.08045454,0.00017501,2]
[374678923,1753410639598,-467.08440281,0.00017501,2]
[374678924,1753410639608,-463.84021226,0.00017501,2]
[374678925,1753410639617,-460.0,0.00017501,2]
[374678926,1753410639627,-460.0,0.00017501,2]
[374678927,1753410639636,-439.89990516,0.00017501,2]
[374678928,1753410639646,-460.0,0.00017501,2]
[374678930,1753410639657,-460.0,0.00017501,2]
[374678932,1753410639666,-460.0,0.00017501,2]
[374678933,1753410639677,-460.0,0.00017501,2]
[374678934,1753410639687,-460.0,0.00017501,2]
[374678935,1753410639697,-460.0,0.00017501,2]
[374678936,1753410639707,-584.03,0.00017501,2]
[374678937,1753410639717,-460.0,0.00017501,2]
[374678938,1753410639727,-460.0,0.00017501,2]
[374678939,1753410639736,-460.0,0.00017501,2]
[374678940,1753410639746,-460.30775853,0.00017501,2]
[374678942,1753410639755,-460.0,0.00017501,2]
[374678944,1753410639765,-505.65478194,0.00017501,2]
[374678945,1753410639775,-457.63999651,0.00017501,2]
[374678946,1753410639786,-460.0,0.00017501,2]
[374678947,1753410639795,-460.0,0.00017501,2]
[374678950,1753410639805,-460.0,0.00017501,2]
[374678953,1753410639814,-460.0,0.00017501,2]
[374678954,1753410639823,-460.0,0.00017501,2]
[374678955,1753410639833,-460.0,0.00017501,2]
[374678956,1753410639842,-460.0,0.00017501,2]
[374678957,1753410639852,-460.0,0.00017501,2]
[374678959,1753410639861,-352.79934772,0.00017501,2]
[374678961,1753410639871,-460.0,0.00017501,2]
[374678962,1753410639880,-470.30117033,0.00017501,2]
[374678963,1753410639890,-460.0,0.00017501,2]
[374678964,1753410639899,-460.0,0.00017501,2]
[374678965,1753410639910,-461.44831635,0.00017501,2]
[374678966,1753410639919,-460.0,0.00017501,2]
[374678967,1753410639928,-460.0,0.00017501,2]
[374678968,1753410639938,-460.0,0.00017501,2]
[374678969,1753410639948,-460.0,0.00017501,2]
[374678970,1753410639957,-464.13049068,0.00017501,2]
[374678972,1753410639967,-460.0,0.00017501,2]
[374678973,1753410639976,-397.25782767,0.00017501,2]
[374678975,1753410639985,-462.34207957,0.00017501,2]
[374678978,1753410639995,-460.0,0.00017501,2]
[374678980,1753410640004,-460.0,0.00017501,2]
[374678982,1753410640013,-461.24797233,0.00017501,2]
[374678984,1753410640023,-460.0,0.00017501,2]
[374678986,1753410640033,-460.0,0.00017501,2]
[374678988,1753410640042,-460.0,0.00017501,2]
[374678989,1753410640051,-773.56,0.00017501,2]
[374678992,1753410640060,-460.0,0.00017501,2]
[374678993,1753410640070,-460.0,0.00017501,2]
[374678996,1753410640082,-463.89066864,0.00017501,2]
[374678997,1753410640091,-460.0,0.00017501,2]
[374679000,1753410640101,-460.0,0.00017501,2]
[374679001,1753410640110,-460.0,0.00017501,2]
[374679003,1753410640120,-461.21965808,0.00017501,2]
[374679005,1753410640130,-1012.15,0.00017501,2]
[374679008,1753410640140,-460.0,0.00017501,2]
[374679009,1753410640150,-460.0,0.00017501,2]
[374679011,1753410640160,-519.48,0.00017501,2]
[374679014,1753410640171,-797.69,0.00017501,2]
[374679016,1753410640181,-460.0,0.00017501,2]
[374679018,1753410640191,-6186.6,0.00017501,2]
[374679019,1753410640200,-461.33501283,0.00017501,2]
[374679022,1753410640211,-460.68061804,0.00017501,2]
[374679023,1753410640220,-461.04722834,0.00017501,2]
[374679025,1753410640230,-1104.74,0.00017501,2]
[374679028,1753410640240,-460.0,0.00017501,2]
[374679030,1753410640250,-2434.21,0.00017501,2]
[374679031,1753410640259,-489.76,0.00017501,2]
[374679033,1753410640268,-460.0,0.00017501,2]
[374679035,1753410640278,-435.26288545,0.00017501,2]
[374679037,1753410640288,-460.94889963,0.00017501,2]
[374679039,1753410640298,-824.96,0.00017501,2]
[374679041,1753410640309,-500.0,0.00017501,2]
[374679043,1753410640319,-500.0,0.00017501,2]
[374679045,1753410640328,-3551.94,0.00017501,2]
[374679048,1753410640338,-500.0,0.00017501,2]
[374679050,1753410640348,-500.0,0.00017501,2]
[374679052,1753410640357,-419.53007772,0.00017501,2]
[374679054,1753410640367,-460.0,0.00017501,2]
[374679056,1753410640377,-460.0,0.00017501,2]
[374679059,1753410640386,-460.0,0.00017501,2]
[374679062,1753410640395,-460.0,0.00017501,2]
[374679065,1753410640405,-460.0,0.00017501,2]
[374679068,1753410640414,-460.0,0.00017501,2]
[374679071,1753410640423,-460.0,0.00017501,2]
[374679074,1753410640433,-464.5035454,0.00017501,2]
[374679076,1753410640442,-537.45,0.00017501,2]
[374679078,1753410640451,-597.97,0.00017501,2]
[374679080,1753410640461,-460.0,0.00017501,2]
[374679082,1753410640471,-460.0,0.00017501,2]
[374679084,1753410640481,-460.0,0.00017501,2]
[374679086,1753410640495,-769.35,0.00017501,2]
[374679088,1753410640505,-548.05,0.00017501,2]
[374679090,1753410640514,-3618.34,0.00017501,2]
[374679092,1753410640524,-461.08295485,0.00017501,2]
[374679094,1753410640534,-460.0,0.00017501,2]
[374679096,1753410640543,-669.02,0.00017501,2]
[374679098,1753410640552,-460.0,0.00017501,2]
[374679100,1753410640562,-618.66,0.00017501,2]
[374679101,1753410640571,-2183.0,0.00017501,2]
[374679104,1753410640583,-460.0,0.00017501,2]
[374679105,1753410640592,-460.89955931,0.00017501,2]
[374679107,1753410640602,-460.0,0.00017501,2]
[374679109,1753410640611,-798.0,0.00017501,2]
[374679112,1753410640621,-475.71354801,0.00017501,2]
[374679113,1753410640630,-1662.31,0.00017501,2]
[374679115,1753410640640,-460.0,0.00017501,2]
[374679117,1753410640650,-460.0,0.00017501,2]
[374679120,1753410640659,-2580.53,0.00017501,2]
[374679122,1753410640669,-723.52,0.00017501,2]
[374679124,1753410640679,-2911.49,0.00017501,2]
[374679126,1753410640689,-460.0,0.00017501,2]
[374679128,1753410640698,-460.4442886,0.00017501,2]
[374679130,1753410640708,-1899.99,0.00017501,2]
[374679132,1753410640717,-466.43264799,0.00017501,2]
[374679134,1753410640726,-460.0,0.00017501,2]
[374679136,1753410640736,-823.25,0.00017501,2]
[374679138,1753410640746,-460.0,0.00017501,2]
[374679140,1753410640755,-460.0,0.00017501,2]
[374679142,1753410640764,-460.0,0.00017501,2]
[374679144,1753410640773,-1184.05,0.00017501,2]
[374679146,1753410640784,-460.0,0.00017501,2]
[374679148,1753410640793,-390.03388809,0.00017501,2]
[374679150,1753410640803,-554.00605253,0.00017501,2]
[374679152,1753410640813,-460.0,0.00017501,2]
[374679154,1753410640822,-460.6349406,0.00017501,2]
[374679156,1753410640831,-460.0,0.00017501,2]
[374679158,1753410640841,-460.0,0.00017501,2]
[374679160,1753410640851,-1186.37,0.00017501,2]
[374679162,1753410640860,-845.56,0.00017501,2]
[374679164,1753410640870,-463.01194384,0.00017501,2]
[374679167,1753410640879,-466.68,0.00017501,2]
[374679169,1753410640889,-1166.67,0.00017501,2]
[374679171,1753410640898,-460.0,0.00017501,2]
[374679173,1753410640907,-460.0,0.00017501,2]
[374679175,1753410640917,-460.0,0.00017501,2]
[374679177,1753410640926,-460.0,0.00017501,2]
[374679178,1753410640935,-460.0,0.00017501,2]
[374679180,1753410640945,-460.0,0.00017501,2]
[374679183,1753410640954,-460.0,0.00017501,2]
[374679185,1753410640965,-460.0,0.00017501,2]
[374679187,1753410640975,-461.02272826,0.00017501,2]
[374679189,1753410640985,-294.82569263,0.00017501,2]
[374679191,1753410640994,-460.0,0.00017501,2]
[374679193,1753410641004,-1960.72,0.00017501,2]
[374679195,1753410641014,-1837.22,0.00017501,2]
[374679197,1753410641023,-460.0,0.00017501,2]
[374679199,1753410641033,-684.41,0.00017501,2]
[374679201,1753410641043,-460.0,0.00017501,2]
[374679203,1753410641052,-2087.95,0.00017501,2]
[374679205,1753410641061,-460.0,0.00017501,2]
[374679206,1753410641071,-462.47758632,0.00017501,2]
[374679209,1753410641080,-460.0,0.00017501,2]
[374679210,1753410641089,-805.27,0.00017501,2]
[374679213,1753410641099,-460.0,0.00017501,2]
[374679215,1753410641109,-1307.26,0.00017501,2]
[374679217,1753410641118,-460.0,0.00017501,2]
[374679219,1753410641127,-460.0,0.00017501,2]
[374679221,1753410641137,-460.0,0.00017501,2]
[374679222,1753410641148,-460.0,0.00017501,2]
[374679224,1753410641157,-460.0,0.00017501,2]
[374679226,1753410641167,-857.62,0.00017501,2]
[374679228,1753410641177,-460.0,0.00017501,2]
[374679231,1753410641186,-460.0,0.00017501,2]
[374679233,1753410641196,-460.0,0.00017501,2]
[374679234,1753410641206,-460.0,0.00017501,2]
[374679237,1753410641215,-500.0,0.00017501,2]
[374679239,1753410641225,-446.48257596,0.00017501,2]
[374679241,1753410641234,-460.0,0.00017501,2]
[374679243,1753410641243,-460.0,0.00017501,2]
[374679244,1753410641253,-500.0,0.00017501,2]
[374679246,1753410641263,-500.0,0.00017501,2]
[374679249,1753410641272,-500.0,0.00017501,2]
[374679251,1753410641282,-500.0,0.00017501,2]
[374679252,1753410641294,-500.0,0.00017501,2]
[374679255,1753410641304,-460.0,0.00017501,2]
[374679257,1753410641314,-460.42676685,0.00017501,2]
[374679259,1753410641323,-2118.52,0.00017501,2]
[374679261,1753410641333,-460.0,0.00017501,2]
[374679263,1753410641342,-460.0,0.00017501,2]
[374679265,1753410641352,-460.0,0.00017501,2]
[374679266,1753410641361,-477.31,0.00017501,2]
[374679269,1753410641371,-460.0,0.00017501,2]
[374679283,1753410641493,-460.87917909,0.00017501,2]
[374679286,1753410641520,-439.0,0.00017501,2]
[374679288,1753410641530,-460.0,0.00017501,2]
[374679290,1753410641542,-460.0,0.00017501,2]
[374679292,1753410641551,-460.0,0.00017501,2]
[374679294,1753410641560,-460.0,0.00017501,2]
[374679296,1753410641570,-994.19,0.00017501,2]
[374679298,1753410641580,-460.0,0.00017501,2]
[374679300,1753410641589,-460.0,0.00017501,2]
[374679302,1753410641598,-460.0,0.00017501,2]
[374679304,1753410641607,-460.0,0.00017501,2]
[374679306,1753410641617,-460.0,0.00017501,2]
[374679308,1753410641626,-460.0,0.00017501,2]
[374679310,1753410641635,-689.09,0.00017501,2]
[374679312,1753410641645,-572.2805827,0.00017501,2]
[374679314,1753410641655,-851.66,0.00017501,2]
[374679316,1753410641666,-5280.61,0.00017501,2]
[374679318,1753410641676,-460.0,0.00017501,2]
[374679320,1753410641685,-460.0,0.00017501,2]
[374679322,1753410641695,-460.0,0.00017501,2]
[374679324,1753410641704,-818.01,0.00017501,2]
[374679326,1753410641714,-1060.82,0.00017501,2]
[374679328,1753410641723,-460.0,0.00017501,2]
[374679330,1753410641732,-460.0,0.00017501,2]
[374679332,1753410641741,-2954.27,0.00017501,2]
[374679334,1753410641751,-460.0,0.00017501,2]
[374679336,1753410641760,-668.67,0.00017501,2]
[374679338,1753410641769,-460.0,0.00017501,2]
[374679340,1753410641779,-460.0,0.00017501,2]
[374679342,1753410641790,-460.0,0.00017501,2]
[374679344,1753410641800,-460.0,0.00017501,2]
[374679346,1753410641810,-460.0,0.00017501,2]
[374679348,1753410641821,-460.0,0.00017501,2]
[374679350,1753410641830,-460.0,0.00017501,2]
[374679352,1753410641840,-460.08007497,0.00017502,2]
[374679354,1753410641850,-460.0,0.00017502,2]
[374679356,1753410641860,-460.0,0.00017502,2]
[374679358,1753410641870,-460.7104141,0.00017502,2]
[374679360,1753410641879,-461.45222407,0.00017502,2]
[374679362,1753410641889,-464.53475645,0.00017502,2]
[374679364,1753410641898,-607.04797568,0.00017502,2]
[374679366,1753410641907,-249.28642298,0.00017502,2]
[374679368,1753410641917,-458.51261916,0.00017502,2]
[374679370,1753410641926,-216.13185331,0.00017502,2]
[374679372,1753410641936,-460.0,0.00017502,2]
[374679374,1753410641945,-460.0,0.00017502,2]
[374679376,1753410641955,-461.18157853,0.00017502,2]
[374679378,1753410641965,-460.0,0.00017502,2]
[374679380,1753410641974,-460.0,0.00017502,2]
[374679382,1753410641984,-460.0,0.00017502,2]
[374679384,1753410641993,-460.0,0.00017502,2]
[374679386,1753410642002,-460.0,0.00017502,2]
[374679388,1753410642011,-605.65642303,0.00017502,2]
[374679390,1753410642021,-461.85876639,0.00017502,2]
[374679392,1753410642030,-460.31912718,0.00017502,2]
[374679394,1753410642041,-465.03615055,0.00017502,2]